fUST/lending_fUST_20240707
["ID","MTS","AMOUNT","RATE_DAILY","PERIOD"]
[331406590,1720348248634,-373.0,0.00046,22]
[331406592,1720348248644,-375.0,0.00046,22]
[331406594,1720348248653,-3104.26073298,0.00046017,30]
[331406596,1720348248662,-3263.54270159,0.00046018,90]
[331406597,1720348248672,-61578.76196281,0.00046025,2]
[331406599,1720348248682,-248.85361427,0.00046027,120]
[331406601,1720348248692,-23870.39,0.00046027,120]
[331406603,1720348248704,-730.55,0.00046027,120]
[331406604,1720348248715,-657.31747399,0.00046027,4]
[331406605,1720348248725,-1172.34538359,0.00046027,4]
[331406606,1720348248735,-6409.834433,0.00046027,4]
[331406607,1720348248744,-9776.30403093,0.00046027,20]
[331406608,1720348248754,-290.39862335,0.00046027,4]
[331406609,1720348248764,-346.44668757,0.00046027,4]
[331406610,1720348248773,-155.1752081,0.00046027,4]
[331406611,1720348248783,-490.0577046,0.00046027,4]
[331406612,1720348248793,-15000.00063604,0.00046027,60]
[331406613,1720348248803,-204.94548438,0.00046027,3]
[331406614,1720348248813,-17493.42182208,0.00046027,120]
[331406615,1720348248823,-193.40528129,0.00046027,4]
[331406616,1720348248832,-683.0,0.00046027,30]
[331406617,1720348248842,-618.37780238,0.00046062,30]
[331406618,1720348248852,-1637.17905575,0.00046162,30]
[331406619,1720348248861,-1637.17905575,0.00046286,30]
[331406620,1720348248871,-539.93,0.00046301,120]
[331406621,1720348248880,-863.71,0.00046301,120]
[331406622,1720348248890,-758.3,0.00046301,120]
[331406623,1720348248900,-2277.09,0.00046301,120]
[331406624,1720348248910,-500.0,0.00046301,120]
[331406625,1720348248921,-3622.16,0.00046301,120]
[331406626,1720348248930,-500.0,0.00046301,120]
[331406627,1720348248940,-4420.68,0.00046301,120]
[331406628,1720348248952,-2729.24,0.00046301,120]
[331406629,1720348248961,-1418.25,0.00046301,120]
[331406630,1720348248971,-2088.03,0.00046301,120]
[331406631,1720348248980,-28020.05,0.00046301,120]
[331406632,1720348248989,-500.0,0.00046301,120]
[331406633,1720348248998,-500.0,0.00046301,120]
[331406634,1720348249008,-16482.27,0.00046301,120]
[331406635,1720348249018,-1928.91,0.00046301,120]
[331406636,1720348249028,-500.0,0.00046301,120]
[331406637,1720348249039,-500.0,0.00046301,120]
[331406638,1720348249048,-500.0,0.00046301,120]
[331406639,1720348249058,-1391.73,0.00046301,120]
[331406640,1720348249068,-980.42,0.00046301,120]
[331406641,1720348249078,-500.0,0.00046301,120]
[331406642,1720348249087,-717.05,0.00046301,60]
[331406643,1720348249098,-500.0,0.00046301,120]
[331406644,1720348249107,-1322.06,0.00046301,120]
[331406645,1720348249116,-1100.84,0.00046301,120]
[331406646,1720348249126,-544.99,0.00046301,120]
[331406647,1720348249136,-500.0,0.00046301,120]
[331406648,1720348249145,-1098.97,0.00046301,120]
[331406649,1720348249155,-1343.21,0.00046301,120]
[331406650,1720348249169,-500.0,0.00046301,120]
[331406651,1720348249179,-168.24598969,0.00046301,120]
[331406652,1720348249190,-500.0,0.00046301,120]
[331406653,1720348249204,-580.1866582,0.00046301,120]
[331406654,1720348249213,-500.0,0.00046301,120]
[331406655,1720348249222,-500.0,0.00046301,120]
[331406656,1720348249231,-500.0,0.00046301,120]
[331406657,1720348249242,-500.0,0.00046301,120]
[331406658,1720348249252,-500.0,0.00046301,120]
[331406659,1720348249409,-933.38,0.00046301,120]
[331406660,1720348249420,-538.12,0.00046301,120]
[331406661,1720348249431,-500.0,0.00046301,120]
[331406662,1720348249442,-500.0,0.00046301,120]
[331406663,1720348249454,-500.0,0.00046301,120]
[331406664,1720348249464,-500.0,0.00046301,120]
[331406665,1720348249473,-1587.98,0.00046301,120]
[331406666,1720348249482,-645.75,0.00046301,120]
[331406667,1720348249492,-525.86559757,0.00046301,120]
[331406668,1720348249501,-536.60847928,0.00046301,120]
[331406669,1720348249510,-1804.61,0.00046301,120]
[331406670,1720348249520,-500.0,0.00046301,120]
[331406671,1720348249529,-1400.55,0.00046301,120]
[331406672,1720348249540,-500.0,0.00046301,120]
[331406673,1720348249551,-764.78,0.00046301,120]
[331406674,1720348249561,-638.28,0.00046301,120]
[331406675,1720348249571,-500.0,0.00046301,120]
[331406676,1720348249581,-993.07,0.00046301,120]
[331406677,1720348249593,-879.0,0.00046301,120]
[331406678,1720348249603,-1084.46,0.00046301,120]
[331406679,1720348249614,-2280.31,0.00046301,120]
[331406680,1720348249625,-1460.56,0.00046301,120]
[331406681,1720348249637,-512.15065637,0.00046301,120]
[331406682,1720348249649,-500.0,0.00046301,120]
[331406683,1720348249660,-1174.74,0.00046301,120]
[331406684,1720348249670,-506.68,0.00046301,120]
[331406685,1720348249682,-547.7,0.00046301,120]
[331406686,1720348249694,-500.0,0.00046301,120]
[331406687,1720348249706,-1275.26,0.00046301,120]
[331406688,1720348249716,-500.0,0.00046301,120]
[331406689,1720348249726,-620.89,0.00046301,120]
[331406690,1720348249737,-2777.24,0.00046301,120]
[331406691,1720348249747,-608.36,0.00046301,120]
[331406692,1720348249757,-590.79,0.00046301,120]
[331406693,1720348249768,-1229.15,0.00046301,120]
[331406694,1720348249778,-500.0,0.00046301,120]
[331406695,1720348249787,-620.32,0.00046301,120]
[331406696,1720348249796,-1466.22,0.00046301,120]
[331406697,1720348249806,-1166.72,0.00046301,120]
[331406698,1720348249816,-500.0,0.00046301,120]
[331406699,1720348249826,-439.51627689,0.00046301,120]
[331406700,1720348249835,-500.0,0.00046301,120]
[331406701,1720348249846,-33955.97,0.00046301,120]
[331406702,1720348249856,-1741.41,0.00046301,120]
[331406703,1720348249865,-500.0,0.00046301,120]
[331406704,1720348249875,-529.53,0.00046301,120]
[331406705,1720348249886,-500.0,0.00046301,120]
[331406706,1720348249896,-500.0,0.00046301,120]
[331406707,1720348249906,-500.0,0.00046301,120]
[331406708,1720348249915,-1189.37,0.00046301,120]
[331406709,1720348249925,-500.0,0.00046301,120]
[331406710,1720348249935,-500.0,0.00046301,120]
[331406711,1720348249944,-500.0,0.00046301,120]
[331406712,1720348249955,-500.0,0.00046301,120]
[331406713,1720348249965,-844.82,0.00046301,120]
[331406714,1720348249975,-500.0,0.00046301,120]
[331406715,1720348249986,-500.0,0.00046301,120]
[331406716,1720348249995,-500.0,0.00046301,120]
[331406717,1720348250006,-1360.1,0.00046301,120]
[331406718,1720348250016,-731.34,0.00046301,120]
[331406719,1720348250027,-500.0,0.00046301,120]
[331406720,1720348250038,-217.3320723,0.00046301,120]
[331406721,1720348250048,-500.0,0.00046301,120]
[331406722,1720348250058,-1170.99,0.00046301,120]
[331406723,1720348250069,-990.62,0.00046301,120]
[331406724,1720348250081,-760.13,0.00046301,120]
[331406725,1720348250091,-1274.08,0.00046301,120]
[331406726,1720348250103,-500.0,0.00046301,120]
[331406727,1720348250113,-806.21,0.00046301,120]
[331406728,1720348250123,-500.0,0.00046301,120]
[331406729,1720348250132,-500.0,0.00046301,120]
[331406730,1720348250142,-834.54,0.00046301,120]
[331406731,1720348250153,-555.67,0.00046301,120]
[331406732,1720348250164,-886.97,0.00046301,120]
[331406733,1720348250179,-19633.38,0.00046301,120]
[331406734,1720348250188,-500.0,0.00046301,120]
[331406735,1720348250199,-500.0,0.00046301,120]
[331406736,1720348250208,-868.77,0.00046301,120]
[331406737,1720348250217,-1022.9,0.00046301,120]
[331406738,1720348250226,-997.77,0.00046301,120]
[331406739,1720348250235,-686.48,0.00046301,120]
[331406740,1720348250246,-3272.31,0.00046301,120]
[331406741,1720348250256,-612.25809617,0.00046301,120]
[331406742,1720348250266,-180.58868514,0.00046301,2]
[331406743,1720348250275,-500.0,0.00046301,120]
[331406744,1720348250284,-764.61,0.00046301,120]
[331406745,1720348250294,-500.0,0.00046301,120]
[331406746,1720348250303,-500.0,0.00046301,120]
[331406747,1720348250313,-500.0,0.00046301,120]
[331406748,1720348250322,-515.08,0.00046301,120]
[331406749,1720348250331,-198.66816411,0.00046301,120]
[331406750,1720348250341,-357.52915003,0.00046301,120]
[331406751,1720348250351,-1472.32,0.00046301,7]
[331406752,1720348250360,-539.31,0.00046301,120]
[331406753,1720348250370,-307.55330673,0.00046301,120]
[331406754,1720348250379,-529.59,0.00046301,120]
[331406755,1720348250389,-2352.27,0.00046301,120]
[331406756,1720348250398,-777.74,0.00046301,120]
[331406757,1720348250408,-500.0,0.00046301,120]
[331406758,1720348250418,-500.0,0.00046301,120]
[331406759,1720348250428,-500.0,0.00046301,120]
[331406760,1720348250438,-671.8,0.00046301,120]
[331406761,1720348250448,-2174.43,0.00046301,120]
[331406762,1720348250459,-6995.33,0.00046301,120]
[331406763,1720348250468,-1875.52,0.00046301,120]
[331406764,1720348250478,-1180.04,0.00046301,120]
[331406765,1720348250487,-500.6,0.00046301,120]
[331406766,1720348250497,-500.0,0.00046301,120]
[331406767,1720348250506,-1990.29,0.00046301,120]
[331406768,1720348250516,-500.0,0.00046301,120]
[331406769,1720348250525,-500.0,0.00046301,120]
[331406770,1720348250534,-500.0,0.00046301,120]
[331406771,1720348250544,-1014.07,0.00046301,120]
[331406772,1720348250555,-1365.67,0.00046301,120]
[331406773,1720348250564,-500.0,0.00046301,120]
[331406774,1720348250575,-668.62,0.00046301,120]
[331406775,1720348250585,-693.64,0.00046301,120]
[331406776,1720348250596,-67758.47,0.00046301,120]
[331406777,1720348250606,-627.2,0.00046301,120]
[331406778,1720348250615,-780.73,0.00046301,120]
[331406779,1720348250625,-800.11,0.00046301,120]
[331406780,1720348250635,-1034.58,0.00046301,120]
[331406781,1720348250644,-1285.7,0.00046301,120]
[331406782,1720348250654,-2445.93,0.00046301,120]
[331406783,1720348250663,-508.27,0.00046301,120]
[331406784,1720348250672,-1752.72,0.00046301,120]
[331406785,1720348250683,-8208.23,0.00046301,120]
[331406786,1720348250692,-500.0,0.00046301,120]
[331406787,1720348250704,-4429.83,0.00046301,120]
[331406788,1720348250716,-4266.09,0.00046301,120]
[331406789,1720348250726,-500.0,0.00046301,120]
[331406790,1720348250738,-2704.38,0.00046301,120]
[331406791,1720348250748,-748.13,0.00046301,120]
[331406792,1720348250758,-1541.47,0.00046301,120]
[331406793,1720348250768,-924.03,0.00046301,120]
[331406794,1720348250778,-500.0,0.00046301,120]
[331406795,1720348250787,-500.0,0.00046301,120]
[331406796,1720348250797,-500.0,0.00046301,120]
[331406797,1720348250806,-500.0,0.00046301,120]
[331406798,1720348250816,-500.0,0.00046301,120]
[331406799,1720348250825,-844.26,0.00046301,120]
[331406800,1720348250834,-500.0,0.00046301,120]
[331406801,1720348250844,-12793.66,0.00046301,120]
[331406802,1720348250853,-203.44207921,0.00046301,120]
[331406803,1720348250862,-896.63,0.00046301,120]
[331406804,1720348250872,-618.83,0.00046301,120]
[331406805,1720348250881,-7734.13,0.00046301,21]
[331406806,1720348250890,-6948.55,0.00046301,120]
[331406807,1720348250900,-2118.44,0.00046301,120]
[331406808,1720348250909,-503.60375423,0.00046301,120]
[331406809,1720348250919,-1280.73,0.00046301,120]
[331406810,1720348250928,-500.0,0.00046301,120]
[331406811,1720348250937,-11105.94,0.00046301,120]
[331406812,1720348250948,-984.09,0.00046301,120]
[331406813,1720348250958,-500.0,0.00046301,120]
[331406814,1720348250967,-500.0,0.00046301,120]
[331406815,1720348250976,-772.24,0.00046301,120]
[331406816,1720348250985,-6036.83,0.00046301,120]
[331406817,1720348250994,-500.0,0.00046301,120]
[331406818,1720348251004,-2113.87,0.00046301,120]
[331406819,1720348251013,-15042.94,0.00046301,120]
[331406820,1720348251022,-887.89,0.00046301,120]
[331406821,1720348251032,-500.0,0.00046301,120]
[331406822,1720348251041,-1240.73,0.00046301,120]
[331406823,1720348251050,-500.0,0.00046301,120]
[331406824,1720348251059,-234.15996906,0.00046301,120]
[331406825,1720348251068,-688.3,0.00046301,120]
[331406826,1720348251078,-600.4,0.00046301,120]
[331406827,1720348251087,-4477.61,0.00046301,120]
[331406828,1720348251096,-1561.9,0.00046301,120]
[331406829,1720348251105,-5599.32,0.00046301,120]
[331406830,1720348251114,-626.43,0.00046301,120]
[331406831,1720348251123,-2966.16,0.00046301,120]
[331406832,1720348251132,-500.0,0.00046301,120]
[331406833,1720348251141,-757.52,0.00046301,120]
[331406834,1720348251150,-1087.62,0.00046301,120]
[331406835,1720348251162,-500.0,0.00046301,120]
[331406836,1720348251171,-667.57,0.00046301,120]
[331406837,1720348251181,-500.0,0.00046301,120]
[331406838,1720348251190,-841.97,0.00046301,120]
[331406839,1720348251199,-1485.95,0.00046301,120]
[331406840,1720348251210,-500.0,0.00046301,120]
[331406841,1720348251219,-2654.48,0.00046301,120]
[331406842,1720348251228,-2654.48,0.00046301,120]
[331406843,1720348251239,-503.30435179,0.00046301,120]
[331406844,1720348251248,-7224.58,0.00046301,120]
[331406845,1720348251257,-500.0,0.00046301,120]
[331406846,1720348251267,-500.0,0.00046301,120]
[331406847,1720348251276,-2906.61,0.00046301,120]
[331406848,1720348251286,-778.38,0.00046301,120]
[331406849,1720348251295,-500.0,0.00046301,120]
[331406850,1720348251305,-641.22,0.00046301,120]
[331406851,1720348251314,-677.83,0.00046301,120]
[331406852,1720348251323,-500.0,0.00046301,120]
[331406853,1720348251332,-950.32,0.00046301,120]
[331406854,1720348251341,-500.0,0.00046301,120]
[331406855,1720348251350,-791.08,0.00046301,120]
[331406856,1720348251359,-500.0,0.00046301,120]
[331406857,1720348251368,-4029.35,0.00046301,120]
[331406858,1720348251377,-3693.57,0.00046301,120]
[331406859,1720348251387,-1139.2,0.00046301,120]
[331406860,1720348251396,-679.83,0.00046301,120]
[331406861,1720348251405,-240.95743479,0.00046301,120]
[331406862,1720348251414,-500.0,0.00046301,120]
[331406863,1720348251425,-681.62,0.00046301,120]
[331406864,1720348251435,-841.38,0.00046301,120]
[331406865,1720348251445,-19997.62,0.00046301,120]
[331406866,1720348251457,-500.0,0.00046301,120]
[331406867,1720348251466,-500.0,0.00046301,120]
[331406868,1720348251475,-500.0,0.00046301,120]
[331406869,1720348251484,-1478.86,0.00046301,120]
[331406870,1720348251494,-9165.57,0.00046301,120]
[331406871,1720348251503,-500.0,0.00046301,120]
[331406872,1720348251512,-500.0,0.00046301,120]
[331406873,1720348251523,-500.0,0.00046301,120]
[331406874,1720348251532,-2498.75,0.00046301,120]
[331406875,1720348251542,-500.0,0.00046301,120]
[331406876,1720348251554,-500.0,0.00046301,120]
[331406877,1720348251565,-1179.34,0.00046301,120]
[331406878,1720348251575,-500.0,0.00046301,120]
[331406879,1720348251584,-512.02055995,0.00046301,120]
[331406880,1720348251595,-483.45500045,0.00046301,120]
[331406881,1720348251605,-1048.51,0.00046301,120]
[331406882,1720348251616,-2474.14,0.00046301,120]
[331406883,1720348251625,-500.0,0.00046301,120]
[331406884,1720348251635,-808.69,0.00046301,120]
[331406885,1720348251645,-587.02,0.00046301,120]
[331406886,1720348251654,-500.0,0.00046301,120]
[331406887,1720348251664,-500.0,0.00046301,30]
[331406888,1720348251674,-500.0,0.00046301,120]
[331406889,1720348251684,-3741.22,0.00046301,120]
[331406890,1720348251693,-531.11,0.00046301,120]
[331406891,1720348251704,-780.81,0.00046301,120]
[331406892,1720348251714,-2000.34,0.00046301,120]
[331406893,1720348251724,-500.0,0.00046301,120]
[331406894,1720348251733,-500.0,0.00046301,120]
[331406895,1720348251743,-500.0,0.00046301,120]
[331406896,1720348251756,-500.0,0.00046301,120]
[331406897,1720348251766,-19236.53,0.00046301,120]
[331406898,1720348251776,-500.0,0.00046301,120]
[331406899,1720348251788,-3413.69,0.00046301,120]
[331406900,1720348251797,-500.0,0.00046301,120]
[331406901,1720348251807,-1250.27,0.00046301,120]
[331406902,1720348251817,-500.0,0.00046301,120]
[331406903,1720348251827,-1121.56,0.00046301,120]
[331406904,1720348251836,-500.0,0.00046301,120]
[331406905,1720348251846,-598.77348819,0.00046301,120]
[331406906,1720348251855,-500.0,0.00046301,120]
[331406907,1720348251864,-734.73,0.00046301,120]
[331406908,1720348251873,-1092.13,0.00046301,120]
[331406909,1720348251883,-500.0,0.00046301,120]
[331406910,1720348251892,-1828.14,0.00046301,120]
[331406911,1720348251902,-500.0,0.00046301,120]
[331406912,1720348251911,-2409.9,0.00046301,120]
[331406913,1720348251921,-1905.14,0.00046301,120]
[331406914,1720348251930,-882.47,0.00046301,120]
[331406915,1720348251940,-2825.71,0.00046301,120]
[331406916,1720348251950,-500.0,0.00046301,120]
[331406917,1720348251960,-553.33809063,0.00046301,120]
[331406918,1720348251970,-639.95,0.00046301,120]
[331406919,1720348251980,-500.0,0.00046301,120]
[331406920,1720348251990,-1399.76,0.00046301,120]
[331406921,1720348252000,-1399.76,0.00046301,120]
[331406922,1720348252011,-1122.0,0.00046301,120]
[331406923,1720348252021,-1122.0,0.00046301,120]
[331406924,1720348252031,-1802.35,0.00046301,120]
[331406925,1720348252042,-1426.86,0.00046301,120]
[331406926,1720348252053,-500.0,0.00046301,120]
[331406927,1720348252063,-1266.29,0.00046301,120]
[331406928,1720348252073,-500.0,0.00046301,120]
[331406929,1720348252083,-193.88240592,0.00046301,120]
[331406930,1720348252094,-500.0,0.00046301,120]
[331406931,1720348252104,-500.0,0.00046301,120]
[331406932,1720348252113,-626.78,0.00046301,120]
[331406933,1720348252124,-500.0,0.00046301,120]
[331406934,1720348252134,-500.0,0.00046301,120]
[331406935,1720348252144,-943.8,0.00046301,120]
[331406936,1720348252153,-500.0,0.00046301,120]
[331406937,1720348252164,-2629.96,0.00046301,120]
[331406938,1720348252180,-1281.3,0.00046301,120]
[331406939,1720348252190,-374.78696642,0.00046301,120]
[331406940,1720348252202,-313.78,0.00046301,120]
[331406941,1720348252213,-500.0,0.00046301,120]
[331406942,1720348252223,-749.98,0.00046301,120]
[331406943,1720348252233,-500.0,0.00046301,120]
[331406944,1720348252243,-686.76,0.00046301,120]
[331406945,1720348252254,-1167.5,0.00046301,120]
[331406946,1720348252263,-818.05,0.00046301,120]
[331406947,1720348252273,-718.68,0.00046301,120]
[331406948,1720348252283,-2844.1,0.00046301,120]
[331406949,1720348252292,-500.0,0.00046301,21]
[331406950,1720348252302,-500.0,0.00046301,120]
[331406951,1720348252313,-483.17177131,0.00046301,120]
[331406952,1720348252323,-253.47,0.00046301,120]
[331406953,1720348252334,-500.0,0.00046301,120]
[331406954,1720348252343,-500.0,0.00046301,120]
[331406955,1720348252355,-23870.39,0.00046301,120]
[331406956,1720348252365,-730.55,0.00046301,120]
[331406957,1720348252375,-452.8565937,0.00046328,30]
[331406958,1720348252384,-159.00788378,0.00046368,30]
[331406959,1720348252393,-154.76146562,0.00046431,63]
[331406960,1720348252403,-151.0,0.00046466,120]
[331406961,1720348252412,-3104.26073298,0.00046554,30]
[331406962,1720348252421,-452.8565937,0.00046573,30]
[331406963,1720348252432,-67824.16338748,0.00046574,30]
[331406964,1720348252441,-539.93,0.00046575,120]
[331406965,1720348252451,-863.71,0.00046575,120]
[331406966,1720348252461,-758.3,0.00046575,120]
[331406967,1720348252470,-2277.09,0.00046575,120]
[331406968,1720348252480,-500.0,0.00046575,120]
[331406969,1720348252489,-3622.16,0.00046575,120]
[331406970,1720348252498,-500.0,0.00046575,120]
[331406971,1720348252507,-4420.68,0.00046575,120]
[331406972,1720348252517,-2729.24,0.00046575,120]
[331406973,1720348252527,-1418.25,0.00046575,120]
[331406974,1720348252536,-2088.03,0.00046575,120]
[331406975,1720348252545,-28020.05,0.00046575,120]
[331406976,1720348252555,-283.010232,0.00046575,120]
[331406977,1720348252564,-500.0,0.00046575,120]
[331406978,1720348252574,-16482.27,0.00046575,120]
[331406979,1720348252583,-1928.91,0.00046575,120]
[331406980,1720348252592,-500.0,0.00046575,120]
[331406981,1720348252601,-517.74922017,0.00046575,120]
[331406982,1720348252610,-500.0,0.00046575,120]
[331406983,1720348252619,-1391.73,0.00046575,120]
[331406984,1720348252628,-980.42,0.00046575,120]
[331406985,1720348252638,-500.0,0.00046575,120]
[331406986,1720348252647,-717.05,0.00046575,60]
[331406987,1720348252656,-500.0,0.00046575,120]
[331406988,1720348252666,-1322.06,0.00046575,120]
[331406989,1720348252675,-1100.84,0.00046575,120]
[331406990,1720348252684,-544.99,0.00046575,120]
[331406991,1720348252693,-500.0,0.00046575,120]
[331406992,1720348252703,-1098.97,0.00046575,120]
[331406993,1720348252712,-1343.21,0.00046575,120]
[331406994,1720348252721,-500.0,0.00046575,120]
[331406995,1720348252730,-500.0,0.00046575,120]
[331406996,1720348252739,-500.0,0.00046575,120]
[331406997,1720348252748,-345.11866505,0.00046575,120]
[331406998,1720348252757,-500.0,0.00046575,120]
[331406999,1720348252766,-500.0,0.00046575,120]
[331407000,1720348252775,-500.0,0.00046575,120]
[331407001,1720348252784,-933.38,0.00046575,120]
[331407002,1720348252794,-538.12,0.00046575,120]
[331407003,1720348252803,-500.0,0.00046575,120]
[331407004,1720348252812,-500.0,0.00046575,120]
[331407005,1720348252821,-500.0,0.00046575,120]
[331407006,1720348252830,-500.0,0.00046575,120]
[331407007,1720348252840,-1587.98,0.00046575,120]
[331407008,1720348252848,-645.75,0.00046575,120]
[331407009,1720348252858,-1804.61,0.00046575,120]
[331407010,1720348252868,-500.0,0.00046575,120]
[331407011,1720348252879,-1400.55,0.00046575,120]
[331407012,1720348252888,-215.70385611,0.00046575,120]
[331407013,1720348252898,-764.78,0.00046575,120]
[331407014,1720348252907,-638.28,0.00046575,120]
[331407015,1720348252917,-500.0,0.00046575,120]
[331407016,1720348252927,-993.07,0.00046575,120]
[331407017,1720348252937,-1084.46,0.00046575,120]
[331407018,1720348252950,-2280.31,0.00046575,120]
[331407019,1720348252959,-1460.56,0.00046575,120]
[331407020,1720348252969,-879.0,0.00046575,120]
[331407021,1720348252979,-500.0,0.00046575,120]
[331407022,1720348252988,-1174.74,0.00046575,120]
[331407023,1720348252998,-506.68,0.00046575,120]
[331407024,1720348253009,-547.7,0.00046575,120]
[331407025,1720348253020,-500.0,0.00046575,120]
[331407026,1720348253031,-1275.26,0.00046575,120]
[331407027,1720348253040,-500.0,0.00046575,120]
[331407028,1720348253049,-620.89,0.00046575,120]
[331407029,1720348253058,-2777.24,0.00046575,120]
[331407030,1720348253068,-608.36,0.00046575,120]
[331407031,1720348253078,-590.79,0.00046575,120]
[331407032,1720348253088,-1229.15,0.00046575,120]
[331407033,1720348253099,-500.0,0.00046575,120]
[331407034,1720348253109,-620.32,0.00046575,120]
[331407035,1720348253118,-1466.22,0.00046575,120]
[331407036,1720348253129,-1166.72,0.00046575,120]
[331407037,1720348253140,-500.0,0.00046575,120]
[331407038,1720348253151,-529.69090016,0.00046575,120]
[331407039,1720348253167,-500.0,0.00046575,120]
[331407040,1720348253177,-1741.41,0.00046575,120]
[331407041,1720348253188,-529.53,0.00046575,120]
[331407042,1720348253199,-500.0,0.00046575,120]
[331407043,1720348253210,-500.0,0.00046575,120]
[331407044,1720348253221,-500.0,0.00046575,120]
[331407045,1720348253232,-1189.37,0.00046575,120]
[331407046,1720348253245,-500.0,0.00046575,120]
[331407047,1720348253256,-500.0,0.00046575,120]
[331407048,1720348253265,-500.0,0.00046575,120]
[331407049,1720348253275,-500.0,0.00046575,120]
[331407050,1720348253285,-844.82,0.00046575,120]
[331407051,1720348253294,-509.99978689,0.00046575,120]
[331407052,1720348253304,-500.0,0.00046575,120]
[331407053,1720348253313,-500.0,0.00046575,120]
[331407054,1720348253322,-731.34,0.00046575,120]
[331407055,1720348253333,-500.0,0.00046575,120]
[331407056,1720348253342,-1360.1,0.00046575,120]
[331407057,1720348253354,-1170.99,0.00046575,120]
[331407058,1720348253363,-990.62,0.00046575,120]
[331407059,1720348253372,-500.0,0.00046575,120]
[331407060,1720348253382,-760.13,0.00046575,120]
[331407061,1720348253391,-1274.08,0.00046575,120]
[331407062,1720348253400,-500.0,0.00046575,120]
[331407063,1720348253410,-806.21,0.00046575,120]
[331407064,1720348253420,-500.0,0.00046575,120]
[331407065,1720348253429,-500.0,0.00046575,120]
[331407066,1720348253439,-834.54,0.00046575,120]
[331407067,1720348253448,-886.97,0.00046575,120]
[331407068,1720348253458,-19633.38,0.00046575,120]
[331407069,1720348253607,-500.0,0.00046575,120]
[331407070,1720348253618,-500.0,0.00046575,120]
[331407071,1720348253627,-868.77,0.00046575,120]
[331407072,1720348253637,-1022.9,0.00046575,120]
[331407073,1720348253647,-997.77,0.00046575,120]
[331407074,1720348253657,-555.67,0.00046575,120]
[331407075,1720348253667,-3272.31,0.00046575,120]
[331407076,1720348253676,-500.0,0.00046575,120]
[331407077,1720348253686,-764.61,0.00046575,120]
[331407078,1720348253695,-500.0,0.00046575,120]
[331407079,1720348253706,-500.0,0.00046575,120]
[331407080,1720348253715,-500.0,0.00046575,120]
[331407081,1720348253724,-515.08,0.00046575,120]
[331407082,1720348253733,-1472.32,0.00046575,7]
[331407083,1720348253742,-539.31,0.00046575,120]
[331407084,1720348253751,-686.48,0.00046575,120]
[331407085,1720348253761,-529.59,0.00046575,120]
[331407086,1720348253771,-2352.27,0.00046575,120]
[331407087,1720348253780,-777.74,0.00046575,120]
[331407088,1720348253792,-500.0,0.00046575,120]
[331407089,1720348253801,-500.0,0.00046575,120]
[331407090,1720348253812,-500.0,0.00046575,120]
[331407091,1720348253821,-671.8,0.00046575,120]
[331407092,1720348253830,-2174.43,0.00046575,120]
[331407093,1720348253840,-6995.33,0.00046575,120]
[331407094,1720348253852,-1875.52,0.00046575,120]
[331407095,1720348253863,-1180.04,0.00046575,120]